bitfinex-derivatives/quotes_SOLF0:USTF0_20251024
["timestamp","ask_amount","ask_price","bid_price","bid_amount"]
[1761338623250,4.53993405,193.63,193.6,2.68]
[1761338623448,2.64,193.64,193.6,2.68]
[1761338623747,4.53984727,193.63,193.6,2.68]
[1761338623947,2.64,193.64,193.6,2.68]
[1761338624148,4.53984727,193.63,193.6,2.68]
[1761338624447,2.64,193.64,193.6,2.68]
[1761338624650,4.5398089,193.63,193.6,2.68]
[1761338624846,2.64,193.64,193.6,2.68]
[1761338625046,4.5398089,193.63,193.6,2.68]
[1761338625246,2.64,193.64,193.6,2.68]
[1761338625449,4.53986695,193.63,193.6,2.68]
[1761338625638,2.64,193.64,193.6,2.68]
[1761338625843,7.22986695,193.63,193.6,2.68]
[1761338626050,2.69,193.63,193.6,2.68]
[1761338627551,2.69,193.66,193.62,2.68]
[1761338627853,7.22986069,193.65,193.62,2.68]
[1761338628049,4.53986069,193.64,193.62,2.68]
[1761338628252,2.69,193.64,193.62,2.68]
[1761338630643,2.69,193.68,193.62,2.68]
[1761338630848,7.22968468,193.67,193.62,2.68]
[1761338631050,4.53968468,193.66,193.62,2.68]
[1761338631250,4.53968468,193.65,193.62,2.68]
[1761338631450,4.53968468,193.64,193.62,2.68]
[1761338631758,4.53968468,193.66,193.62,2.68]
[1761338632056,4.53968468,193.65,193.62,2.68]
[1761338632262,2.69,193.67,193.62,2.68]
[1761338632447,4.53956745,193.66,193.62,2.68]
[1761338632643,3.87783819,193.7,193.62,2.68]
[1761338632644,2.69,193.69,193.62,2.68]
[1761338632956,4.53923313,193.68,193.62,2.68]
[1761338633257,4.53923313,193.67,193.62,2.68]
[1761338633454,4.53923313,193.66,193.62,2.68]
[1761338633758,2.69,193.69,193.62,2.68]
[1761338634055,4.53910072,193.68,193.62,2.68]
[1761338634255,4.53910072,193.67,193.62,2.68]
[1761338634454,4.53910072,193.66,193.62,2.68]
[1761338634654,2.69,193.69,193.62,2.68]
[1761338634856,4.53897027,193.68,193.62,2.68]
[1761338635053,4.53897027,193.67,193.62,2.68]
[1761338635249,4.53897027,193.66,193.62,2.68]
[1761338635558,2.69,193.69,193.62,2.68]
[1761338635858,4.53889726,193.68,193.62,2.68]
[1761338636054,3.87783819,193.72,193.62,2.68]
[1761338636055,7.22889726,193.67,193.62,2.68]
[1761338636250,4.53889726,193.66,193.62,2.68]
[1761338636451,2.69,193.67,193.62,2.68]
[1761338636650,4.53882501,193.66,193.62,2.68]
[1761338636951,2.69,193.67,193.62,2.68]
[1761338637151,4.53882501,193.66,193.62,2.68]
[1761338637351,2.69,193.67,193.62,2.68]
[1761338637561,4.57350582,193.66,193.62,2.68]
[1761338637753,2.69,193.67,193.62,2.68]
[1761338638052,4.57350582,193.66,193.62,2.68]
[1761338638253,2.69,193.67,193.62,2.68]
[1761338638552,4.57360286,193.66,193.62,2.68]
[1761338638753,2.69,193.67,193.62,2.68]
[1761338639056,4.57360286,193.66,193.62,2.68]
[1761338639258,2.69,193.67,193.62,2.68]
[1761338639457,4.57404289,193.66,193.62,2.68]
[1761338639759,2.69,193.67,193.62,2.68]
[1761338639960,4.57404289,193.66,193.62,2.68]
[1761338640163,2.69,193.67,193.63,2.66]
[1761338640360,37.86,193.74,193.63,2.66]
[1761338640361,2.6,193.65,193.63,2.66]
[1761338640861,4.57490581,193.64,193.63,2.66]
[1761338643358,2.6,193.63,193.59,4.6484]
[1761338643569,2.6,193.61,193.58,2.66]
[1761338643760,4.57490581,193.6,193.58,2.66]
[1761338643959,2.6,193.61,193.58,2.66]
[1761338644163,4.5777977,193.6,193.58,2.66]
[1761338644366,2.6,193.61,193.58,2.66]
[1761338644566,4.57814751,193.6,193.58,2.66]
[1761338644866,2.6,193.61,193.58,2.66]
[1761338645067,4.57814751,193.6,193.58,2.66]
[1761338645269,2.6,193.61,193.58,2.66]
[1761338645568,4.57787006,193.6,193.58,2.66]
[1761338645769,2.6,193.61,193.58,2.66]
[1761338645965,4.57807605,193.6,193.58,2.66]
[1761338646170,2.6,193.61,193.58,2.66]
[1761338646361,7.1777352,193.6,193.58,2.66]
[1761338646666,2.6,193.6,193.58,2.66]
[1761338647667,2.6,193.6,193.57,4.6488]
[1761338647869,2.6,193.6,193.57,7.3288]
[1761338648064,2.6,193.6,193.55,2.68]
[1761338648269,2.76,193.58,193.55,2.68]
[1761338649066,7.3378224,193.57,193.55,2.68]
[1761338649271,2.76,193.56,193.54,115.62921757]
[1761338649466,2.76,193.59,193.55,2.68]
[1761338649776,2.76,193.57,193.55,2.68]
[1761338650366,4.57578805,193.62,193.55,2.68]
[1761338650567,2.76,193.6,193.55,2.68]
[1761338650767,2.76,193.58,193.55,2.68]
[1761338659777,2.76,193.58,193.54,115.62921757]
[1761338661772,2.76,193.56,193.51,2.68]
[1761338661971,2.76,193.55,193.51,2.68]
[1761338662372,2.76,193.57,193.51,2.68]
[1761338662573,7.33002834,193.57,193.51,2.68]
[1761338662774,2.76,193.57,193.51,2.68]
[1761338664683,2.76,193.57,193.51,1.92201182]
[1761338664884,2.76,193.57,193.52,2.68]
[1761338670183,2.76,193.57,193.51,4.60201182]
[1761338670780,2.76,193.57,193.51,1.92201182]
[1761338670980,2.76,193.57,193.52,2.68]
[1761338671881,4.57002834,193.59,193.54,2.68]
[1761338672085,15.0,193.62,193.54,2.68]
[1761338672086,2.76,193.6,193.54,2.68]
[1761338672387,2.76,193.59,193.54,2.68]
[1761338672982,2.76,193.58,193.54,2.68]
[1761338673687,2.76,193.58,193.5,2.68]
[1761338673889,2.76,193.58,193.52,4.60201182]
[1761338676190,2.76,193.58,193.53,2.68]
[1761338676384,2.76,193.58,193.55,2.68]
[1761338680287,2.76,193.58,193.56,1.92201182]
[1761338680492,2.76,193.58,193.56,4.61201182]
[1761338683694,7.33002834,193.58,193.56,4.61201182]
[1761338683995,2.76,193.58,193.56,4.61201182]
[1761338686601,2.75,193.62,193.56,1.92201182]
[1761338686801,2.75,193.6,193.57,2.69]
[1761338687000,4.55543459,193.59,193.58,4.61201182]
[1761338687199,7.30543459,193.62,193.59,2.69]
[1761338687401,4.55543459,193.61,193.59,2.69]
[1761338687589,4.55543459,193.6,193.59,2.69]
[1761338687998,2.75,193.62,193.59,2.69]
[1761338688198,7.30630661,193.61,193.59,2.69]
[1761338688497,4.55630661,193.6,193.59,2.69]
[1761338688702,2.75,193.61,193.59,2.69]
[1761338690206,2.75,193.61,193.58,1.92201182]
[1761338690504,2.75,193.61,193.58,4.61201182]
[1761338699814,2.75,193.61,193.59,2.69]
[1761338701107,2.69,193.63,193.59,2.69]
[1761338701304,88.23637344,194.91,193.63,2.69]
[1761338701305,2.69,193.69,193.63,2.69]
[1761338701502,2.69,193.67,193.64,4.61201182]
[1761338701710,4.52333769,193.66,193.65,2.69]
[1761338702005,2.69,193.67,193.65,2.69]
[1761338702707,2.69,193.69,193.65,2.69]
[1761338702907,7.21137411,193.68,193.65,2.69]
[1761338703110,4.52137411,193.67,193.65,2.69]
[1761338703417,2.69,193.67,193.65,2.69]
[1761338715221,2.69,193.67,193.61,2.77]
[1761338715612,2.73,193.66,193.61,2.77]
[1761338716310,1.92201182,193.65,193.61,2.77]
[1761338716514,2.73,193.64,193.61,2.77]
[1761338718427,2.73,193.64,193.59,2.77]
[1761338721527,2.73,193.64,193.6,2.77]
[1761338722421,4.51774165,193.64,193.6,2.77]
[1761338722627,2.73,193.62,193.56,2.77]
[1761338723223,7.24774165,193.62,193.56,2.77]
[1761338723417,2.73,193.61,193.56,2.77]
[1761338724520,2.73,193.61,193.57,2.77]
[1761338725923,7.24774165,193.61,193.57,2.77]
[1761338726123,2.73,193.61,193.57,2.77]
[1761338726321,2.73,193.61,193.58,2.77]
[1761338727123,7.24774165,193.61,193.58,2.77]
[1761338727323,4.51774165,193.6,193.58,2.77]
[1761338727522,2.73,193.61,193.58,2.77]
[1761338729127,7.34813607,193.67,193.57,2.77]
[1761338729324,2.73,193.65,193.57,2.77]
[1761338729525,4.61813607,193.64,193.57,2.77]
[1761338729831,4.61813607,193.63,193.57,2.77]
[1761338730025,2.73,193.65,193.59,4.6483]
[1761338730231,7.3486732,193.64,193.6,2.77]
[1761338730432,4.6186732,193.63,193.6,2.77]
[1761338730734,2.73,193.64,193.6,2.77]
[1761338730935,4.61965508,193.63,193.6,2.77]
[1761338731121,2.73,193.64,193.6,2.77]
[1761338731325,4.61965462,193.63,193.6,2.77]
[1761338731534,4.61965462,193.62,193.6,2.77]
[1761338731833,2.73,193.64,193.6,2.77]
[1761338732035,4.62075169,193.63,193.6,2.77]
[1761338732339,4.62075169,193.62,193.6,2.77]
[1761338732530,2.73,193.64,193.6,2.77]
[1761338732732,4.62105808,193.63,193.6,2.77]
[1761338732933,4.62105808,193.62,193.6,2.77]
[1761338733134,2.73,193.64,193.6,2.77]
[1761338733335,4.62122506,193.63,193.6,2.77]
[1761338733537,4.62122506,193.62,193.6,2.77]
[1761338733735,2.73,193.64,193.6,2.77]
[1761338733936,4.62127842,193.63,193.6,2.77]
[1761338734235,4.62127842,193.62,193.6,2.77]
[1761338734436,2.73,193.64,193.6,2.77]
[1761338734736,4.62142355,193.63,193.6,2.77]
[1761338734934,4.62142355,193.62,193.6,2.77]
[1761338735135,2.73,193.64,193.6,2.77]
[1761338735334,4.62158479,193.63,193.6,2.77]
[1761338735536,4.62158479,193.62,193.6,2.77]
[1761338735737,2.73,193.64,193.6,2.77]
[1761338735938,4.62157644,193.63,193.6,2.77]
[1761338736131,4.62157644,193.62,193.6,2.77]
[1761338736327,2.73,193.64,193.6,2.77]
[1761338736528,4.62173715,193.63,193.6,7.4181]
[1761338736733,4.62173715,193.62,193.61,2.77]
[1761338742147,2.73,193.66,193.62,2.72]
[1761338742345,4.62259261,193.65,193.62,2.72]
[1761338742539,4.62259261,193.64,193.62,2.72]
[1761338742845,4.62259261,193.63,193.62,2.72]
[1761338744344,2.72,193.65,193.62,2.72]
[1761338744545,4.62217812,193.64,193.62,2.72]
[1761338744743,2.72,193.7,193.63,2.72]
[1761338745039,4.62211379,193.69,193.63,2.72]
[1761338745240,7.34211379,193.68,193.63,2.72]
[1761338745444,4.62211379,193.67,193.65,7.3669]
[1761338745647,2.72,193.68,193.66,2.72]
[1761338745942,4.62118964,193.67,193.66,2.72]
[1761338748635,2.72,193.71,193.68,2.72]
[1761338748838,4.6191005,193.7,193.68,2.72]
[1761338749041,4.6191005,193.69,193.68,2.72]
[1761338750242,4.61656781,193.7,193.68,2.72]
[1761338750446,2.72,193.71,193.68,2.72]
[1761338750748,7.33656781,193.7,193.68,2.72]
[1761338750948,2.72,193.7,193.68,2.72]
[1761338752143,4.61526852,193.77,193.69,2.72]
[1761338752349,2.72,193.75,193.69,2.72]
[1761338752548,7.33526852,193.74,193.69,2.72]
[1761338752742,4.61526852,193.73,193.69,2.72]
[1761338752942,2.72,193.74,193.69,2.72]
[1761338753147,4.61327131,193.73,193.69,2.72]
[1761338753543,4.61327131,193.73,193.71,2.72]
[1761338754245,2.72,193.74,193.71,2.72]
[1761338756043,2.72,193.73,193.71,2.72]
[1761338756443,2.72,193.76,193.71,2.72]
[1761338756644,2.72,193.74,193.71,2.72]
[1761338758245,2.72,193.74,193.72,2.73]
[1761338759053,2.75,193.8,193.72,2.73]
[1761338759255,2.75,193.78,193.72,2.73]
[1761338759452,3.00174312,193.82,193.72,2.73]
[1761338759453,2.75,193.76,193.72,2.73]
[1761338761146,2.75,193.76,193.7,4.6457]
[1761338764552,2.75,193.76,193.7,7.3757]
[1761338766353,2.75,193.76,193.71,2.73]
[1761338766949,2.75,193.76,193.72,4.6452]
[1761338767154,2.75,193.76,193.73,2.73]
[1761338769254,2.65,193.79,193.74,2.72]
[1761338770355,2.65,193.79,193.76,2.72]
[1761338776858,2.65,193.79,193.73,2.72]
[1761338777964,2.65,193.79,193.75,2.72]
[1761338787270,2.65,193.78,193.75,2.72]
[1761338791465,7.18191807,193.78,193.75,2.72]
[1761338791670,2.65,193.78,193.75,2.72]
[1761338792070,7.18191807,193.78,193.75,2.72]
[1761338792272,2.65,193.78,193.75,2.72]
[1761338792674,7.18191807,193.78,193.75,2.72]
[1761338792875,2.65,193.78,193.75,2.72]
[1761338795377,4.53869333,193.77,193.75,2.72]
[1761338795578,2.65,193.78,193.75,2.72]
[1761338795873,7.1887787,193.77,193.75,2.72]
[1761338796078,2.65,193.77,193.75,2.72]
[1761338797381,2.65,193.77,193.74,4.6447]
[1761338798278,2.65,193.77,193.75,2.65]
[1761338799080,2.75,193.8,193.75,2.65]
[1761338799287,4.54119705,193.79,193.76,2.65]
[1761338799484,4.54119705,193.78,193.76,2.65]
[1761338799783,2.75,193.81,193.76,2.65]
[1761338799980,4.54104079,193.8,193.77,2.65]
[1761338800179,4.54104079,193.79,193.77,2.65]
[1761338800378,4.54104079,193.78,193.77,2.65]
[1761338802781,4.54104079,193.79,193.77,2.65]
[1761338802980,2.75,193.8,193.77,2.65]
[1761338803181,7.2911215,193.79,193.77,2.65]
[1761338803481,2.75,193.79,193.77,2.65]
[1761338805084,2.75,193.81,193.77,2.65]
[1761338805384,4.5410163,193.8,193.78,2.65]
[1761338805579,2.75,193.82,193.78,2.65]
[1761338805786,4.54053216,193.81,193.78,2.65]
[1761338806079,2.75,193.82,193.78,2.65]
[1761338806281,4.54032802,193.81,193.78,2.65]
[1761338806476,2.75,193.82,193.78,2.65]
[1761338806676,2.75,193.82,193.76,6.67534104]
[1761338806677,4.54009367,193.81,193.8,2.65]
[1761338809984,2.75,193.82,193.8,2.65]
[1761338810184,4.53994075,193.81,193.8,2.65]
[1761338810991,2.75,193.8,193.77,2.65]
[1761338811887,2.75,193.8,193.78,2.65]
[1761338814692,4.54242819,193.79,193.75,108.37573827]
[1761338814898,7.29242819,193.78,193.75,103.61796584]
[1761338815103,2.75,193.78,193.75,98.97346584]
[1761338815294,2.75,193.78,193.76,2.65]
[1761338816094,2.75,193.84,193.76,2.65]
[1761338816298,2.75,193.82,193.76,2.65]
[1761338816490,2.75,193.8,193.76,2.65]
[1761338816691,4.54265527,193.79,193.76,2.65]
[1761338816890,2.75,193.8,193.76,2.65]
[1761338817202,4.54234159,193.79,193.77,7.294]
[1761338817499,2.75,193.8,193.77,7.294]
[1761338818299,2.75,193.8,193.78,2.84]
[1761338820707,2.82,193.82,193.79,2.84]
[1761338820904,4.48476621,193.81,193.79,2.84]
[1761338821100,2.82,193.83,193.79,2.84]
[1761338821403,7.3047033,193.82,193.79,2.84]
[1761338821601,4.4847033,193.81,193.8,2.84]
[1761338822906,2.82,193.82,193.8,2.84]
[1761338823307,4.4830777,193.84,193.81,2.84]
[1761338823511,2.82,193.87,193.81,2.84]
[1761338823697,2.82,193.85,193.82,4.6428]
[1761338823901,4.48261343,193.84,193.82,7.4828]
[1761338824101,2.82,193.85,193.82,7.4828]
[1761338824296,7.30261352,193.84,193.82,7.4828]
[1761338824496,2.82,193.84,193.82,7.4828]
[1761338825199,4.73756861,193.86,193.83,2.84]
[1761338825405,7.30044894,193.85,193.83,2.84]
[1761338825612,2.82,193.85,193.83,2.84]
[1761338826305,2.82,193.86,193.82,7.4828]
[1761338826511,7.29966762,193.85,193.82,7.4828]
[1761338826713,2.82,193.85,193.82,7.4828]
[1761338827305,2.82,193.85,193.83,7.4826]
[1761338827510,7.29901957,193.85,193.83,7.4826]
[1761338827716,2.82,193.85,193.83,7.4826]
[1761338828014,7.29901957,193.85,193.83,7.4826]
[1761338828309,2.82,193.85,193.83,7.4826]
[1761338828495,7.29901957,193.85,193.83,7.4826]
[1761338828703,2.82,193.85,193.83,7.4826]
[1761338828902,4.47901957,193.85,193.84,2.61]
[1761338829111,4.47842519,193.87,193.84,2.61]
[1761338829507,7.31842519,193.87,193.84,2.61]
[1761338829707,4.80804043,193.93,193.83,2.61]
[1761338829708,7.31842519,193.9,193.83,2.61]
[1761338830009,4.47842519,193.89,193.85,2.61]
[1761338831105,4.47842519,193.89,193.86,7.2518]
[1761338831306,2.84,193.9,193.86,7.2518]
[1761338831506,7.31842519,193.9,193.86,7.2518]
[1761338831706,2.84,193.9,193.86,2.61]
[1761338831907,2.84,193.89,193.86,2.61]
[1761338833304,2.84,193.89,193.84,4.6423]
[1761338833609,2.84,193.87,193.84,4.6423]
[1761338833807,2.84,193.94,193.87,2.61]
[1761338834004,2.84,193.94,193.8,15.5415134]
[1761338834005,2.84,193.94,193.89,2.61]
[1761338834207,2.84,193.94,193.92,2.61]
[1761338835209,2.84,193.94,193.89,1.91756861]
[1761338835413,2.84,193.94,193.89,4.52756861]
[1761338835607,2.84,193.94,193.89,1.91756861]
[1761338835814,2.84,193.94,193.9,2.61]
[1761338838317,2.84,193.99,193.92,2.61]
[1761338839223,2.84,193.99,193.93,1.91756861]
[1761338839716,2.84,193.99,193.92,4.52756861]
[1761338840119,2.84,193.99,193.93,2.61]
[1761338846417,2.84,193.99,193.91,1.91756861]
[1761338846729,4.45331804,194.0,193.88,2.61]
[1761338846730,2.84,193.97,193.88,7.2514]
[1761338847029,2.84,193.97,193.89,2.61]
[1761338852129,2.99140594,193.97,193.89,2.61]
[1761338852332,2.84,193.96,193.89,2.61]
[1761338857534,2.99140594,193.97,193.89,2.61]
[1761338857736,2.6,193.95,193.89,2.61]
[1761338860735,2.6,193.95,193.85,2.99140594]
[1761338860936,2.6,193.91,193.82,7.41777243]
[1761338861241,2.6,193.89,193.82,2.66]
[1761338864429,7.05331804,193.89,193.82,2.66]
[1761338864632,2.6,193.89,193.82,2.66]
[1761338865136,7.05331804,193.89,193.82,2.66]
[1761338865337,2.6,193.89,193.82,2.66]
[1761338865738,4.45331804,193.89,193.82,2.66]
[1761338865936,4.45331804,193.91,193.84,2.66]
[1761338866138,4.45331804,193.94,193.84,2.66]
[1761338866332,4.45331804,193.93,193.85,4.642]
[1761338866539,4.45331804,193.94,193.86,2.66]
[1761338867432,4.45331804,193.93,193.86,2.66]
[1761338867631,4.45331804,193.94,193.86,2.66]
[1761338867938,4.45331804,193.93,193.86,7.3018]
[1761338868136,4.45331804,193.94,193.87,2.66]
[1761338868333,4.45331804,193.93,193.87,2.66]
[1761338868534,4.45331804,193.94,193.87,2.66]
[1761338868835,4.45331804,193.93,193.87,2.66]
[1761338869034,4.45331804,193.94,193.88,2.66]
[1761338869932,4.45331804,193.94,193.88,7.3013]
[1761338870132,4.45331804,193.94,193.89,2.66]
[1761338871739,7.05331804,193.97,193.89,2.66]
[1761338871935,4.45331804,193.96,193.89,2.66]
[1761338872136,4.45331804,193.95,193.89,2.66]
[1761338872335,4.45331804,193.94,193.9,2.66]
[1761338872535,4.45331804,193.93,193.9,2.66]
[1761338872736,4.45331804,193.96,193.9,2.66]
[1761338872936,4.45331804,193.95,193.9,2.66]
[1761338873137,4.45331804,193.94,193.9,2.66]
[1761338873339,4.45331804,193.93,193.9,2.66]
[1761338873537,4.45331804,193.96,193.9,2.66]
[1761338873741,4.45331804,193.95,193.9,2.66]
[1761338873944,4.45331804,193.94,193.9,2.66]
[1761338874143,4.45331804,193.93,193.9,2.66]
[1761338874346,4.45331804,193.96,193.91,2.66]
[1761338874645,4.45331804,193.95,193.91,2.66]
[1761338874847,4.45331804,193.94,193.91,2.66]
[1761338875043,4.45331804,193.96,193.91,2.66]
[1761338875339,4.45331804,193.95,193.91,2.66]
[1761338875544,4.45331804,193.94,193.91,2.66]
[1761338875742,4.45331804,193.96,193.91,2.66]
[1761338875939,4.45331804,193.95,193.91,2.66]
[1761338876242,4.45331804,193.94,193.91,2.66]
[1761338876444,4.45331804,193.96,193.91,2.66]
[1761338876739,4.45331804,193.95,193.91,2.66]
[1761338877044,4.45331804,193.94,193.91,2.66]
[1761338877245,4.45331804,193.96,193.92,2.82]
[1761338877445,7.60804043,194.0,193.92,2.82]
[1761338877446,4.45331804,193.95,193.92,2.82]
[1761338877644,4.45331804,193.94,193.92,2.82]
[1761338877842,4.45331804,193.99,193.92,2.82]
[1761338878140,4.45331804,193.98,193.92,2.82]
[1761338878338,4.45331804,193.97,193.92,2.82]
[1761338878538,4.45331804,193.96,193.92,2.82]
[1761338878737,4.45331804,193.95,193.92,2.82]
[1761338878941,4.45331804,193.94,193.92,2.82]
[1761338879147,7.25331804,193.99,193.92,2.82]
[1761338879342,4.45331804,193.98,193.92,2.82]
[1761338879543,4.45331804,193.97,193.92,2.82]
[1761338879743,4.45331804,193.96,193.92,2.82]
[1761338879942,4.45331804,193.95,193.92,2.82]
[1761338880144,4.45331804,193.94,193.93,2.82]
[1761338880343,4.45331804,193.98,193.93,2.82]
[1761338880544,2.8,193.96,193.93,2.82]
[1761338880745,4.45331804,193.95,193.93,2.82]
[1761338880944,4.45331804,193.94,193.93,2.82]
[1761338881141,2.8,193.99,193.93,2.82]
[1761338881445,7.25331804,193.98,193.93,2.82]
[1761338881649,4.45331804,193.97,193.93,2.82]
[1761338881940,4.45331804,193.96,193.93,2.82]
[1761338882145,4.45331804,193.95,193.93,2.82]
[1761338882346,4.45331804,193.94,193.93,2.82]
[1761338882546,4.45331804,193.96,193.93,2.82]
[1761338882747,4.45331804,193.95,193.93,2.82]
[1761338882947,4.45331804,193.94,193.93,2.82]
[1761338883149,4.45331804,193.96,193.93,2.82]
[1761338883449,4.45331804,193.95,193.93,2.82]
[1761338883648,4.45331804,193.94,193.93,2.82]
[1761338883848,2.8,193.97,193.93,2.82]
[1761338884050,7.25331804,193.96,193.93,2.82]
[1761338884248,7.25331804,193.95,193.93,2.82]
[1761338884548,2.8,193.93,193.86,2.82]
[1761338884749,2.8,193.9,193.86,2.82]
[1761338884946,4.45331804,193.89,193.86,2.82]
[1761338885553,4.45331804,193.89,193.86,7.4618]
[1761338887849,7.15331804,193.89,193.86,7.4618]
[1761338888160,2.7,193.89,193.86,7.4618]
[1761338888451,7.15331804,193.89,193.86,7.4618]
[1761338888747,2.7,193.89,193.86,7.4618]
[1761338888949,7.15331804,193.89,193.86,7.4618]
[1761338889152,2.7,193.89,193.86,7.4618]
[1761338889352,7.15331804,193.89,193.86,7.4618]
[1761338889547,2.7,193.89,193.86,7.4618]
[1761338889755,2.7,193.87,193.84,2.84]
[1761338890052,2.7,193.89,193.84,2.84]
[1761338890248,7.15331804,193.88,193.84,2.84]
[1761338890450,2.7,193.88,193.84,2.84]
[1761338890848,7.15331804,193.88,193.84,2.84]
[1761338891054,2.7,193.88,193.85,7.4821]
[1761338891447,7.15331804,193.88,193.85,7.4821]
[1761338891646,2.7,193.88,193.85,7.4821]
[1761338892052,7.15331804,193.88,193.85,7.4821]
[1761338892251,2.7,193.88,193.85,7.4821]
[1761338892753,7.15331804,193.88,193.85,7.4821]
[1761338892959,2.7,193.88,193.85,7.4821]
[1761338893361,7.15331804,193.88,193.85,7.4821]
[1761338893557,2.7,193.88,193.85,7.4821]
[1761338894058,7.15331804,193.88,193.85,7.4821]
[1761338894244,2.7,193.88,193.85,7.4821]
[1761338894757,2.7,193.86,193.83,7.4827]
[1761338895056,2.7,193.85,193.83,2.84]
[1761338895749,2.7,193.85,193.77,2.99140594]
[1761338895949,2.7,193.85,193.81,4.643]
[1761338896148,2.7,193.85,193.81,2.84]
[1761338896351,2.7,193.85,193.78,2.84]
[1761338898060,2.7,193.85,193.81,2.84]
[1761338899158,2.7,193.85,193.82,2.84]
[1761338904258,4.50115543,193.89,193.83,2.84]
[1761338904462,2.7,193.88,193.83,2.84]
[1761338905053,2.7,193.88,193.84,2.84]
[1761338906164,2.7,193.88,193.85,2.84]
[1761338907659,7.20115543,193.88,193.85,2.84]
[1761338908462,7.50804043,193.94,193.87,1.91579732]
[1761338908680,4.53059134,193.93,193.88,2.84]
[1761338908868,4.53059134,193.92,193.88,2.84]
[1761338909057,4.53059134,193.93,193.88,2.84]
[1761338909256,4.53059134,193.92,193.9,2.84]
[1761338909469,4.53059134,193.93,193.9,2.84]
[1761338909763,4.53059134,193.92,193.88,2.84]
[1761338909965,2.7,193.91,193.88,2.84]
[1761338910465,2.7,193.89,193.87,4.6416]
[1761338911362,2.7,193.89,193.85,9.39799732]
[1761338911559,2.7,193.89,193.85,7.4822]
[1761338911965,2.7,193.89,193.85,4.6422]
[1761338912461,4.53059134,193.89,193.85,4.6422]
[1761338912667,1.91579732,193.91,193.85,4.6422]
[1761338912668,2.7,193.88,193.85,4.6422]
[1761338913063,2.7,193.87,193.85,4.6422]
[1761338914667,2.7,193.87,193.83,4.6426]
[1761338915068,2.7,193.86,193.83,4.6426]
[1761338915264,2.7,193.86,193.83,7.4826]
[1761338917470,2.7,193.86,193.83,2.84]
[1761338922369,7.23059134,193.86,193.83,2.84]
[1761338922571,2.7,193.86,193.83,2.84]
[1761338922772,2.61,193.85,193.83,2.84]
[1761338923467,4.53059134,193.87,193.83,2.84]
[1761338923662,4.53059134,193.91,193.87,2.82]
[1761338923965,7.14059134,193.9,193.87,2.82]
[1761338924167,2.61,193.9,193.87,2.82]
[1761338924369,4.53475285,193.89,193.87,2.82]
[1761338926372,4.53475285,193.89,193.88,2.82]
[1761338926670,7.14475285,193.92,193.88,2.82]
[1761338926874,2.61,193.92,193.88,2.82]
[1761338927066,4.53640775,193.91,193.88,2.82]
[1761338927270,4.53640775,193.9,193.88,2.82]